bitfinex-derivatives/quotes_SOLF0:USTF0_20250626
["timestamp","ask_amount","ask_price","bid_price","bid_amount"]
[1750905058837,6.8725,145.43,145.39,15.41161917]
[1750905059350,42.3519,145.44,145.39,6.8739]
[1750905060747,42.3519,145.44,145.4,6.8738]
[1750905061544,42.3519,145.44,145.39,6.8741]
[1750905061854,35.48,145.44,145.38,136.93481444]
[1750905062347,38.87709527,145.44,145.38,136.93481444]
[1750905062656,38.87709527,145.44,145.38,128.39709527]
[1750905063645,38.87709527,145.44,145.38,135.27149527]
[1750905063646,6.8729,145.42,145.38,135.27149527]
[1750905064351,38.87709527,145.44,145.38,128.39709527]
[1750905064553,35.48,145.44,145.4,3.39709527]
[1750905064947,42.3519,145.44,145.41,6.8733]
[1750905065250,35.48,145.44,145.41,6.8733]
[1750905066649,35.48,145.44,145.4,3.39709527]
[1750905066859,35.5,145.47,145.42,3.39709527]
[1750905068245,35.5,145.47,145.44,6.8718]
[1750905068556,35.5,145.47,145.42,7.86049527]
[1750905069463,42.3708,145.47,145.43,6.8721]
[1750905069768,42.3708,145.47,145.42,7.86049527]
[1750905070065,6.871,145.46,145.42,14.73299527]
[1750905070553,6.871,145.46,145.42,11.3359]
[1750905070962,6.8714,145.45,145.42,11.3359]
[1750905071767,6.8714,145.45,145.42,4.4634]
[1750905071966,6.8719,145.44,145.42,4.4634]
[1750905072264,38.89709527,145.47,145.4,8.53771917]
[1750905072459,3.39709527,145.45,145.38,138.31811917]
[1750905072661,3.39709527,145.45,145.38,135.89471917]
[1750905072864,3.39709527,145.43,145.37,8.53771917]
[1750905073164,42.3729,145.42,145.37,8.53771917]
[1750905073363,42.3729,145.42,145.37,15.41251917]
[1750905073565,35.5,145.42,145.37,15.41251917]
[1750905074668,6.8733,145.41,145.37,15.41251917]
[1750905076561,35.5,145.42,145.37,8.53771917]
[1750905076562,6.8739,145.4,145.37,8.53771917]
[1750905076759,6.8739,145.4,145.36,20.19361917]
[1750905077769,6.8739,145.4,145.36,20.19371917]
[1750905078168,6.8739,145.4,145.36,13.31811917]
[1750905079571,6.8739,145.4,145.36,20.19371917]
[1750905079772,6.8739,145.4,145.36,13.31811917]
[1750905079967,6.8739,145.4,145.36,4.7804]
[1750905080164,6.8749,145.38,145.35,8.53771917]
[1750905080474,6.8749,145.38,145.34,8.53771917]
[1750905081076,6.8744,145.39,145.34,8.53771917]
[1750905081372,3.39709527,145.41,145.35,8.53771917]
[1750905081776,6.8746,145.39,145.35,8.53771917]
[1750905081973,3.39709527,145.41,145.34,15.41401917]
[1750905082167,3.39709527,145.41,145.34,8.53771917]
[1750905082369,6.875,145.38,145.34,8.53771917]
[1750905082674,42.335,145.38,145.34,8.53771917]
[1750905083468,42.335,145.38,145.34,15.41431917]
[1750905084675,42.335,145.38,145.34,8.53771917]
[1750905085170,6.8752,145.37,145.35,8.53771917]
[1750905085370,6.8752,145.37,145.34,8.53771917]
[1750905086071,35.46,145.38,145.34,8.53771917]
[1750905086277,3.39709527,145.42,145.34,8.53771917]
[1750905086572,3.39709527,145.42,145.35,8.53771917]
[1750905086573,35.46,145.4,145.35,8.53771917]
[1750905087078,6.8749,145.38,145.35,8.53771917]
[1750905087475,6.8749,145.38,145.34,15.41401917]
[1750905087673,35.46,145.4,145.34,8.53771917]
[1750905087870,35.46,145.4,145.36,8.53771917]
[1750905088573,35.46,145.4,145.37,3.39709527]
[1750905089079,6.8729,145.42,145.38,6.8746]
[1750905089279,42.3329,145.42,145.38,6.8746]
[1750905090373,6.8734,145.41,145.37,18.80981444]
[1750905090980,6.8734,145.41,145.38,6.8747]
[1750905091279,42.333,145.42,145.38,15.41241917]
[1750905091579,42.333,145.42,145.4,6.38960411]
[1750905091972,35.46,145.45,145.4,6.38960411]
[1750905092178,35.46,145.45,145.42,6.38960411]
[1750905092378,42.3318,145.45,145.43,6.38960411]
[1750905096487,6.8719,145.44,145.43,6.38960411]
[1750905096693,35.46,145.45,145.43,6.38960411]
[1750905097492,42.3317,145.45,145.43,6.38960411]
[1750905099791,6.8719,145.44,145.43,6.38960411]
[1750905101790,6.8724,145.43,145.42,6.38960411]
[1750905103888,6.8728,145.42,145.41,6.38960411]
[1750905105394,6.8738,145.4,145.39,6.38960411]
[1750905107187,6.8742,145.39,145.38,6.38960411]
[1750905110104,6.8747,145.38,145.37,6.38960411]
[1750905111203,10.27179527,145.38,145.37,6.38960411]
[1750905111402,6.8752,145.37,145.36,6.38960411]
[1750905111703,42.2952,145.37,145.36,6.38960411]
[1750905115703,35.42,145.37,145.33,8.53771917]
[1750905115904,35.42,145.37,145.32,8.53771917]
[1750905116300,35.42,145.37,145.33,8.53771917]
[1750905116502,35.42,145.37,145.32,8.53771917]
[1750905116899,35.42,145.37,145.3,8.53771917]
[1750905116900,3.39709527,145.36,145.3,8.53771917]
[1750905117306,3.39709527,145.36,145.31,8.53771917]
[1750905117505,6.8771,145.33,145.3,8.53771917]
[1750905118214,6.878,145.31,145.3,8.53771917]
[1750905118512,6.878,145.31,145.28,8.53771917]
[1750905118904,10.27479527,145.32,145.28,8.53771917]
[1750905119505,10.27479527,145.32,145.27,8.53771917]
[1750905120113,35.42,145.33,145.28,11.93481444]
[1750905120518,35.42,145.33,145.28,3.39709527]
[1750905121014,6.8776,145.32,145.27,15.41751917]
[1750905121213,35.42,145.33,145.27,8.53771917]
[1750905122117,3.39709527,145.32,145.27,8.53771917]
[1750905122611,6.8782,145.31,145.27,8.53771917]
[1750905123420,6.8782,145.31,145.26,17.76521917]
[1750905124426,6.8786,145.3,145.26,17.76521917]
[1750905126819,6.8786,145.3,145.26,2.3473]
[1750905127016,6.8791,145.29,145.26,2.3473]
[1750905127217,3.39709527,145.32,145.25,4.8902]
[1750905127521,3.39709527,145.28,145.18,8.53771917]
[1750905127714,3.39709527,145.25,145.19,4.5836]
[1750905127915,35.44,145.24,145.18,8.53771917]
[1750905128112,35.44,145.24,145.17,11.93481444]
[1750905128419,3.39709527,145.26,145.19,8.53771917]
[1750905128726,3.39709527,145.26,145.18,10.92481917]
[1750905128918,3.39709527,145.26,145.19,7.98069527]
[1750905129114,3.39709527,145.26,145.19,4.5836]
[1750905129309,3.39709527,145.26,145.2,3.39709527]
[1750905129518,3.39709527,145.26,145.21,6.8824]
[1750905130110,3.39709527,145.28,145.19,13.12131917]
[1750905130319,38.83709527,145.28,145.21,3.39709527]
[1750905130810,38.83709527,145.28,145.2,35.44]
[1750905131423,3.39709527,145.24,145.19,4.5836]
[1750905131624,3.39709527,145.22,145.19,4.5836]
[1750905131832,10.27969527,145.22,145.18,2.3871]
[1750905132216,6.8826,145.22,145.18,9.2712]
[1750905132516,3.39709527,145.22,145.18,9.2712]
[1750905133216,10.27949527,145.22,145.18,2.3871]
[1750905133426,3.39709527,145.22,145.18,2.3871]
[1750905134422,6.8829,145.21,145.18,2.3871]
[1750905135026,3.39709527,145.22,145.18,2.3871]
[1750905135228,3.39709527,145.22,145.18,9.2712]
[1750905135924,1.3008,145.3,145.18,5.78419527]
[1750905136122,3.39709527,145.26,145.18,5.78419527]
[1750905136931,10.27789527,145.26,145.21,6.8827]
[1750905139023,6.8808,145.26,145.22,6.8822]
[1750905139427,3.39709527,145.27,145.2,3.39709527]
[1750905139633,38.81709527,145.27,145.23,6.8815]
[1750905140131,38.81709527,145.27,145.21,11.6373]
[1750905140630,6.8808,145.26,145.21,11.6373]
[1750905141028,6.881,145.25,145.21,11.6373]
[1750905142126,6.8815,145.24,145.21,4.7549]
[1750905142329,3.39709527,145.25,145.19,6.8833]
[1750905143024,10.27839527,145.25,145.19,6.8833]
[1750905143231,3.39709527,145.25,145.19,6.8833]
[1750905144234,10.27899527,145.23,145.18,9.2712]
[1750905144626,10.27899527,145.23,145.18,2.3871]
[1750905145541,10.27899527,145.23,145.19,6.8837]
[1750905147133,3.39709527,145.23,145.19,6.8837]
[1750905148832,10.27899527,145.23,145.19,6.8837]
[1750905149339,10.27899527,145.23,145.18,9.2711]
[1750905151147,45.69899527,145.23,145.18,9.2711]
[1750905151329,45.69899527,145.23,145.19,6.8833]
[1750905152233,3.39709527,145.22,145.15,43.64659527]
[1750905152434,3.39709527,145.22,145.15,45.92279527]
[1750905152633,38.81709527,145.23,145.15,45.92279527]
[1750905153137,45.69899527,145.23,145.15,45.92279527]
[1750905153544,45.69899527,145.23,145.15,54.46051444]
[1750905153736,45.69899527,145.23,145.18,6.8838]
[1750905154443,45.69899527,145.23,145.19,6.8836]
[1750905154637,38.81709527,145.23,145.17,3.39709527]
[1750905154837,3.39709527,145.25,145.17,11.93481444]
[1750905155038,3.39709527,145.25,145.2,6.8828]
[1750905155838,3.39709527,145.25,145.21,6.8828]
[1750905156846,38.81709527,145.25,145.21,6.8828]
[1750905157046,10.27829527,145.25,145.21,6.8828]
[1750905157347,38.81709527,145.25,145.2,6.8831]
[1750905158545,6.8814,145.24,145.2,6.8831]
[1750905158848,38.81709527,145.25,145.2,6.8831]
[1750905159054,3.39709527,145.25,145.2,6.8831]
[1750905159346,38.81709527,145.25,145.2,6.8831]
[1750905160655,6.8814,145.24,145.2,6.8831]
[1750905161349,45.69809527,145.25,145.21,6.8826]
[1750905161549,38.81709527,145.25,145.19,8.53771917]
[1750905162042,45.69829527,145.25,145.21,6.8825]
[1750905162238,38.81709527,145.25,145.19,8.53771917]
[1750905162755,6.8814,145.24,145.2,6.8829]
[1750905163059,35.42,145.25,145.19,8.53771917]
[1750905163349,42.3009,145.25,145.21,6.8824]
[1750905163849,35.42,145.25,145.2,14.30801444]
[1750905164045,3.39709527,145.28,145.22,8.53771917]
[1750905164252,35.42,145.27,145.21,8.53771917]
[1750905164556,6.8805,145.26,145.22,6.8819]
[1750905165255,6.8805,145.26,145.21,15.42041917]
[1750905165960,6.8805,145.26,145.22,15.41961917]
[1750905168152,6.8805,145.26,145.23,8.53771917]
[1750905168359,42.3,145.27,145.23,15.41951917]
[1750905168546,35.42,145.27,145.23,8.53771917]
[1750905168752,35.4,145.29,145.24,8.53771917]
[1750905169054,35.4,145.29,145.26,6.8804]
[1750905169251,35.4,145.29,145.26,15.41811917]
[1750905170455,6.8789,145.3,145.26,15.41811917]
[1750905171155,6.8792,145.29,145.26,8.53771917]
[1750905172454,6.8792,145.29,145.26,15.41801917]
[1750905172655,6.8786,145.3,145.26,15.41801917]
[1750905173255,3.39709527,145.3,145.26,8.53771917]
[1750905173460,6.79419054,145.28,145.23,8.53771917]
[1750905173649,3.39709527,145.24,145.22,8.53771917]
[1750905174552,10.27859527,145.24,145.21,8.53771917]
[1750905175055,3.39709527,145.26,145.22,8.53771917]
[1750905175248,6.8812,145.25,145.22,8.53771917]
[1750905175650,6.8812,145.25,145.23,6.42271281]
[1750905176751,2647.79,145.42,145.23,11.93481444]
[1750905177058,13.7434,145.45,145.3,8.53771917]
[1750905177059,35.4,145.36,145.3,8.53771917]
[1750905177252,35.4,145.36,145.32,6.41884267]
[1750905177453,3.39709527,145.35,145.31,6.41884267]
[1750905178355,6.8771,145.33,145.31,6.41884267]
[1750905179257,6.8771,145.33,145.3,6.41884267]
[1750905181655,6.8767,145.34,145.3,6.41884267]
[1750905181862,35.4,145.36,145.31,6.41884267]
[1750905182254,35.4,145.36,145.32,6.41884267]
[1750905182958,35.4,145.4,145.35,6.41884267]
[1750905183163,35.4,145.4,145.34,3.39709527]
[1750905183164,35.4,145.4,145.36,6.41884267]
[1750905183355,35.4,145.4,145.36,16.69123794]
[1750905184049,3.39709527,145.45,145.38,3.39709527]
[1750905184249,35.4,145.44,145.38,3.39709527]
[1750905184463,35.4,145.44,145.38,9.81593794]
[1750905185056,35.4,145.44,145.39,6.41884267]
[1750905185256,35.4,145.44,145.38,9.81593794]
[1750905185461,35.4,145.44,145.39,6.41884267]
[1750905186258,6.8724,145.43,145.38,9.81593794]
[1750905186657,6.8724,145.43,145.39,6.41884267]
[1750905187265,35.4,145.44,145.38,9.81593794]
[1750905187466,35.4,145.44,145.38,16.69023794]
[1750905187669,6.8728,145.43,145.38,3.39709527]
[1750905188263,6.8728,145.43,145.38,10.27139527]
[1750905188461,6.8719,145.45,145.38,3.39709527]
[1750905188663,6.8719,145.45,145.4,3.39709527]
[1750905188956,35.38,145.46,145.4,3.39709527]
[1750905188957,6.872,145.44,145.4,3.39709527]
[1750905190157,6.8715,145.45,145.4,3.39709527]
[1750905190661,42.251,145.46,145.4,3.39709527]
[1750905191058,6.871,145.46,145.4,3.39709527]
[1750905191263,6.8705,145.47,145.42,10.26989527]
[1750905192381,6.8705,145.47,145.43,6.8723]
[1750905192672,42.25,145.48,145.43,6.8723]
[1750905192878,35.38,145.48,145.42,3.39709527]
[1750905193171,35.38,145.48,145.42,10.26979527]
[1750905193668,6.8706,145.47,145.42,10.26979527]
[1750905194473,42.2501,145.48,145.43,6.8723]
[1750905195660,35.36,145.51,145.44,3.39709527]
[1750905196158,42.2286,145.51,145.47,6.8704]
[1750905196764,42.2286,145.51,145.46,10.26789527]
[1750905197666,6.8686,145.51,145.46,10.26789527]
[1750905198175,6.8686,145.51,145.46,3.39709527]
[1750905199279,6.8686,145.51,145.46,10.26769527]
[1750905199573,35.36,145.53,145.46,3.39709527]
[1750905200374,6.8686,145.51,145.46,10.26799527]
[1750905201876,6.8692,145.5,145.46,10.26799527]
[1750905202572,6.8687,145.51,145.46,10.26799527]
[1750905202974,6.8687,145.51,145.47,6.8704]
[1750905203973,6.8682,145.52,145.47,6.8704]
[1750905205375,6.8682,145.52,145.47,10.26749527]
[1750905205673,6.8686,145.51,145.47,3.39709527]
[1750905205978,6.8703,145.48,145.44,3.39709527]
[1750905206173,6.8703,145.48,145.42,3.39709527]
[1750905206174,3.39709527,145.48,145.42,3.39709527]
[1750905206580,6.8708,145.47,145.42,10.26979527]
[1750905207281,6.8708,145.47,145.42,6.8727]
[1750905207577,6.871,145.46,145.42,6.8727]
[1750905207776,3.39709527,145.46,145.38,36.44]
[1750905207970,3.39709527,145.44,145.38,36.44]
[1750905209279,10.26929527,145.44,145.39,6.8742]
[1750905209670,3.39709527,145.44,145.39,6.8742]
[1750905210172,10.26899527,145.44,145.39,6.8742]
[1750905210480,3.39709527,145.44,145.39,6.8742]
[1750905211475,3.39709527,145.44,145.36,8.12949527]
[1750905211682,3.39709527,145.42,145.35,36.44]
[1750905212182,6.8746,145.39,145.35,36.44]
[1750905212480,36.44,145.41,145.35,36.44]
[1750905213576,43.3134,145.41,145.37,6.8751]
[1750905213779,36.44,145.41,145.37,6.8751]
[1750905213975,42.16009527,145.44,145.35,36.44]
[1750905214179,6.8724,145.43,145.38,6.8744]
[1750905216272,6.8724,145.43,145.39,6.8742]
[1750905216972,6.8729,145.42,145.38,6.8746]
[1750905217873,6.8734,145.41,145.35,39.83709527]
[1750905218075,6.8734,145.41,145.35,164.83709527]
[1750905218474,6.8734,145.41,145.36,6.8753]
[1750905218677,6.8729,145.42,145.35,164.83709527]
[1750905218875,6.8729,145.42,145.37,6.8751]
[1750905219968,6.8734,145.41,145.37,6.8751]
[1750905220380,6.8734,145.41,145.37,10.27219527]
[1750905222479,6.8734,145.41,145.37,3.39709527]
[1750905223179,6.8739,145.4,145.37,3.39709527]
[1750905225379,6.8739,145.4,145.37,9.7383907]
[1750905226484,6.8739,145.4,145.37,6.34129543]
[1750905227278,6.8739,145.4,145.38,6.34129543]
[1750905227685,6.8742,145.39,145.38,6.34129543]
[1750905227880,36.46,145.4,145.36,6.34129543]
[1750905228088,39.85709527,145.4,145.36,6.34129543]
[1750905228579,6.8743,145.39,145.36,6.34129543]
[1750905233483,39.85709527,145.4,145.36,6.34129543]
[1750905233686,39.85709527,145.4,145.33,6.34129543]
[1750905234073,3.39709527,145.38,145.33,6.34129543]
[1750905234688,6.8759,145.36,145.33,6.34129543]
[1750905236683,3.39709527,145.38,145.31,6.34129543]
[1750905237388,6.8765,145.35,145.31,6.34129543]
[1750905238191,42.9358,145.36,145.31,6.34129543]
[1750905238576,6.8762,145.35,145.31,13.21919543]
[1750905239396,42.9358,145.36,145.31,13.21919543]
[1750905240085,36.06,145.36,145.31,6.34129543]
[1750905240489,6.8775,145.33,145.3,6.34129543]
[1750905241089,6.8775,145.33,145.29,6.34129543]
[1750905241286,6.8775,145.33,145.3,6.34129543]
[1750905241679,6.8775,145.33,145.29,13.22019543]
[1750905241881,36.06,145.36,145.29,6.34129543]
[1750905242083,36.06,145.36,145.32,3.39709527]
[1750905242481,36.06,145.36,145.33,6.8771]
[1750905243389,36.06,145.36,145.32,3.39709527]
[1750905243588,6.8761,145.35,145.32,3.39709527]
[1750905244992,6.8761,145.35,145.31,13.21899543]
[1750905246195,6.8761,145.35,145.32,6.34129543]
[1750905246795,6.8761,145.35,145.31,13.21899543]
[1750905247294,6.8761,145.35,145.32,6.34129543]
[1750905248891,6.8761,145.35,145.32,13.21889543]
[1750905249087,42.9358,145.36,145.32,13.21889543]
[1750905249491,36.06,145.36,145.32,6.34129543]
[1750905250691,6.8761,145.35,145.32,6.34129543]
[1750905251397,39.45709527,145.36,145.32,6.34129543]
[1750905252001,6.8769,145.34,145.32,6.34129543]
[1750905254303,6.8763,145.35,145.32,6.34129543]
[1750905255604,6.8769,145.34,145.32,6.34129543]
[1750905255802,39.45709527,145.36,145.32,6.34129543]
[1750905256301,6.8768,145.34,145.32,6.34129543]
[1750905258506,39.45709527,145.36,145.32,6.34129543]
[1750905258807,36.06,145.36,145.33,6.34129543]
[1750905260193,36.06,145.36,145.34,6.34129543]
[1750905260508,42.9358,145.36,145.34,6.34129543]
[1750905261206,36.06,145.36,145.34,6.34129543]
[1750905261401,36.06,145.36,145.35,6.34129543]
[1750905261900,36.06,145.36,145.34,6.34129543]
[1750905261901,42.9357,145.36,145.34,6.34129543]
[1750905262095,42.9357,145.36,145.33,6.34129543]
[1750905262096,3.39709527,145.35,145.33,6.34129543]
[1750905262302,6.8771,145.33,145.32,6.34129543]
[1750905262700,6.8771,145.33,145.3,6.34129543]
[1750905263007,3.39709527,145.35,145.3,6.34129543]
[1750905263903,6.8779,145.32,145.3,6.34129543]
[1750905266311,6.8772,145.33,145.3,6.34129543]
[1750905266703,3.39709527,145.35,145.3,6.34129543]
[1750905267195,3.39709527,145.35,145.31,6.34129543]
[1750905267400,3.39709527,145.35,145.3,6.34129543]
[1750905268199,3.39709527,145.35,145.31,6.34129543]
[1750905268604,6.8774,145.33,145.31,6.34129543]
[1750905270111,6.8774,145.33,145.3,6.34129543]
[1750905270506,6.8774,145.33,145.31,6.34129543]
[1750905271013,6.8774,145.33,145.3,6.34129543]
[1750905271210,6.8774,145.33,145.31,6.34129543]
[1750905272908,6.8776,145.32,145.31,6.34129543]
[1750905273109,6.8776,145.32,145.3,6.34129543]
[1750905273807,6.8776,145.32,145.31,6.34129543]
[1750905274011,6.8772,145.33,145.31,6.34129543]
[1750905275621,10.27349527,145.35,145.31,6.34129543]
[1750905275815,6.8764,145.35,145.33,6.34129543]
[1750905276120,6.8765,145.35,145.33,6.34129543]
[1750905278219,6.8765,145.35,145.34,6.34129543]
[1750905280220,42.9358,145.36,145.34,6.34129543]
[1750905280726,42.9358,145.36,145.35,6.34129543]
[1750905281421,36.06,145.36,145.35,6.34129543]
[1750905281617,6.8749,145.38,145.35,8.45506058]
[1750905281817,35.76,145.39,145.36,6.42572457]
[1750905282024,39.15709527,145.39,145.36,6.42572457]
[1750905283024,10.27229527,145.37,145.36,6.42572457]
[1750905283322,3.39709527,145.37,145.35,6.42572457]
[1750905283519,3.39709527,145.37,145.34,6.42572457]
[1750905284621,6.8761,145.35,145.34,6.42572457]
[1750905286817,42.6361,145.35,145.34,6.42572457]
[1750905291423,42.6361,145.35,145.3,12.68259087]
[1750905291424,6.8776,145.32,145.31,8.45506058]
[1750905291617,6.8776,145.32,145.3,8.45506058]
[1750905292433,6.878,145.31,145.3,8.45506058]
[1750905292831,39.15709527,145.35,145.3,8.45506058]
[1750905293831,6.8774,145.33,145.3,8.45506058]
[1750905295732,6.8767,145.34,145.31,8.45506058]
[1750905295939,39.15709527,145.35,145.31,8.45506058]
[1750905296236,39.15709527,145.35,145.3,8.45506058]
[1750905296934,6.8767,145.34,145.31,8.45506058]
[1750905300442,35.76,145.35,145.32,8.45506058]
[1750905300641,35.56,145.38,145.34,8.45506058]
[1750905300936,35.56,145.38,145.35,8.45506058]
[1750905301238,35.56,145.38,145.34,8.45506058]
[1750905302737,35.56,145.38,145.35,8.45506058]
[1750905304344,35.56,145.38,145.34,8.45506058]
[1750905304533,6.8752,145.37,145.34,8.45506058]
[1750905305937,42.4348,145.38,145.35,8.45506058]
[1750905306339,42.4348,145.38,145.34,15.33166058]
[1750905307433,42.4348,145.38,145.35,8.45506058]
[1750905307944,35.56,145.38,145.35,8.45506058]
[1750905308135,6.8743,145.39,145.36,8.45506058]
[1750905308641,6.8739,145.4,145.36,8.45506058]
[1750905308836,6.8739,145.4,145.36,10.78806058]
[1750905309034,6.8749,145.38,145.36,10.78806058]
[1750905310147,6.8744,145.39,145.36,10.78806058]
[1750905310450,35.56,145.41,145.36,2.333]
[1750905310641,35.56,145.41,145.36,10.78806058]
[1750905311142,6.8741,145.4,145.36,10.78806058]
[1750905311546,35.56,145.41,145.36,2.333]
[1750905312240,6.8746,145.39,145.36,2.333]
[1750905316253,3.39709527,145.4,145.35,8.45506058]
[1750905317145,6.8749,145.38,145.35,8.45506058]
[1750905317340,3.39709527,145.38,145.35,8.45506058]
[1750905317545,3.39709527,145.38,145.33,10.76276058]
[1750905318055,6.876,145.36,145.33,10.76276058]
[1750905318447,3.39709527,145.38,145.33,10.76276058]
[1750905318750,6.8761,145.36,145.33,10.76276058]
[1750905319354,3.39709527,145.38,145.33,10.76276058]
[1750905320254,3.39709527,145.38,145.34,8.45506058]
[1750905320948,6.8761,145.36,145.34,8.45506058]
[1750905329068,6.8761,145.35,145.34,6.058e-05]
[1750905329271,11.0322376,145.36,145.27,151.43792532]
[1750905329472,3.39709527,145.34,145.28,12.68259087]
[1750905329668,6.8774,145.33,145.29,6.879]
[1750905330264,35.52,145.37,145.28,14.86374543]
[1750905330265,2.18115456,145.32,145.28,14.86374543]
[1750905330571,2.18115456,145.31,145.28,2.18115456]
[1750905330763,2.18115456,145.32,145.28,2.18115456]
[1750905330969,6.8783,145.31,145.28,2.18115456]
[1750905331861,9.05885456,145.32,145.29,2.18115456]
[1750905332160,2.18115456,145.35,145.31,2.18115456]
[1750905332365,35.52,145.36,145.3,20.77639939]
[1750905333976,35.52,145.36,145.31,12.68259087]
[1750905334678,6.8763,145.35,145.32,6.8775]
[1750905335478,6.8767,145.34,145.31,19.56049087]
[1750905336479,6.8763,145.35,145.31,19.56049087]
[1750905336685,6.8763,145.35,145.32,6.8775]
[1750905337371,42.3959,145.36,145.32,6.8775]
[1750905337572,42.3959,145.36,145.33,6.8771]
[1750905338682,6.8762,145.35,145.32,10.28380852]
[1750905339983,42.3959,145.36,145.32,10.28380852]
[1750905340183,42.3959,145.36,145.33,6.877]
[1750905340385,35.52,145.36,145.33,6.877]
[1750905340579,6.8755,145.37,145.33,6.877]
[1750905341283,6.8755,145.37,145.32,16.08899939]
[1750905341584,6.8755,145.37,145.34,6.8765]
[1750905342883,6.8749,145.38,145.35,6.8761]
[1750905343188,35.54,145.39,145.32,16.08899939]
[1750905343484,6.8755,145.37,145.34,6.8766]
[1750905343687,35.54,145.39,145.34,6.8766]
[1750905344083,35.54,145.39,145.34,19.55919087]
[1750905344292,35.54,145.39,145.35,6.8759]
[1750905344801,35.54,145.39,145.36,6.8756]
[1750905347197,42.4143,145.39,145.35,6.876]
[1750905347384,35.54,145.39,145.35,6.876]
[1750905348593,6.8748,145.38,145.35,6.876]
[1750905350295,6.8748,145.38,145.34,16.08899939]
[1750905351096,6.8748,145.38,145.34,22.96539939]
[1750905351489,35.54,145.39,145.34,12.68259087]
[1750905351694,38.94640852,145.39,145.33,125.0]
[1750905352094,6.8758,145.36,145.33,125.0]
[1750905352295,6.8758,145.36,145.32,22.96629939]
[1750905352593,38.94640852,145.39,145.32,12.68259087]
[1750905352993,3.40640852,145.37,145.3,140.07929087]
[1750905353201,6.8769,145.34,145.3,146.95769087]
[1750905353391,6.8769,145.34,145.3,21.95769087]
[1750905358700,6.8769,145.34,145.31,6.878]
[1750905358902,35.48,145.35,145.3,18.48569939]
[1750905359104,35.48,145.38,145.34,8.54999195]
[1750905359299,35.48,145.38,145.34,15.42629195]
[1750905359498,42.3551,145.38,145.34,18.83270047]
[1750905360389,6.8753,145.37,145.34,18.83270047]
[1750905361099,35.48,145.38,145.36,8.54999195]
[1750905361406,6.8741,145.4,145.36,15.42559195]
[1750905361703,6.8741,145.4,145.36,18.83200047]
[1750905362402,6.8744,145.39,145.36,18.83200047]
[1750905364206,38.88640852,145.41,145.36,8.54999195]
[1750905364806,6.8751,145.38,145.36,8.54999195]
[1750905365098,6.8751,145.38,145.35,8.54999195]
[1750905365910,6.8751,145.38,145.34,15.42639195]
[1750905366413,6.8755,145.37,145.34,8.54999195]
[1750905366710,6.8758,145.36,145.34,8.54999195]
[1750905366897,6.8758,145.36,145.33,8.54999195]
[1750905367101,6.8758,145.36,145.34,8.54999195]
[1750905367412,6.8758,145.36,145.33,8.54999195]
[1750905369412,6.8762,145.35,145.33,8.54999195]
[1750905373310,6.8766,145.34,145.33,8.54999195]
[1750905373609,6.8766,145.34,145.32,8.54999195]
[1750905375410,6.8771,145.33,145.32,8.54999195]
[1750905376206,6.8769,145.34,145.32,8.54999195]
[1750905376609,6.8769,145.34,145.33,8.54999195]
[1750905376811,6.8762,145.35,145.33,8.54999195]
[1750905377114,38.88640852,145.37,145.33,8.54999195]
[1750905377419,38.88640852,145.37,145.31,12.68259087]
[1750905377420,35.48,145.37,145.34,8.54999195]
[1750905378309,42.3552,145.37,145.34,15.42649195]
[1750905378512,35.48,145.37,145.34,15.42649195]
[1750905378707,35.48,145.37,145.35,8.54999195]
[1750905379911,35.48,145.37,145.35,15.42609195]
[1750905380112,35.48,145.4,145.35,8.54999195]
[1750905380420,35.48,145.4,145.36,8.54999195]
[1750905381115,6.8744,145.39,145.36,15.42539195]
[1750905383921,35.48,145.4,145.37,6.8749]
[1750905384118,35.48,145.4,145.37,15.42489195]
[1750905384811,35.48,145.4,145.37,8.54999195]
[1750905385820,35.48,145.4,145.36,15.42549195]
[1750905386018,6.8743,145.39,145.36,15.42549195]
[1750905386318,35.48,145.4,145.37,15.42509195]
[1750905386520,35.48,145.4,145.38,8.54999195]
[1750905386825,35.48,145.4,145.37,15.42509195]
[1750905387123,35.48,145.4,145.37,8.54999195]
[1750905387721,6.8744,145.39,145.37,8.54999195]